bitfinex-derivatives/quotes_SOLF0:USTF0_20241002
["timestamp","ask_amount","ask_price","bid_price","bid_amount"]
[1727884256003,3.3914,147.43,147.4,3.3918]
[1727884256405,18.8595,147.46,147.4,3.3918]
[1727884256609,18.8595,147.46,147.39,6.14]
[1727884257097,3.391,147.45,147.39,6.14]
[1727884257298,18.8595,147.46,147.41,3.3915]
[1727884257807,3.391,147.44,147.41,3.3915]
[1727884258309,16.28,147.42,147.35,0.12502]
[1727884258606,1.283,147.41,147.35,0.12502]
[1727884258804,3.38342039,147.4,147.35,0.12502]
[1727884259000,3.3928,147.36,147.35,0.12502]
[1727884259207,1.2856,147.39,147.35,0.12502]
[1727884260307,4.6778,147.39,147.36,3.3927]
[1727884261207,1.333,147.4,147.35,0.12502]
[1727884261410,1.283,147.41,147.35,0.12502]
[1727884261411,1.283,147.41,147.35,16.40502]
[1727884261597,6.02,147.43,147.35,16.40502]
[1727884261801,3.3914,147.43,147.4,3.3918]
[1727884262001,7.3788,147.45,147.36,6.02]
[1727884262201,7.3788,147.45,147.36,9.46633964]
[1727884262709,7.3788,147.45,147.37,16.28]
[1727884263104,1.3588,147.45,147.37,16.28]
[1727884263307,2.6097,147.46,147.42,3.3913]
[1727884263308,6.0003,147.46,147.42,3.3913]
[1727884263609,2.6097,147.46,147.42,3.3913]
[1727884264299,2.6097,147.46,147.41,3.3915]
[1727884264498,2.6097,147.46,147.37,16.28]
[1727884264499,16.28,147.45,147.37,16.28]
[1727884264804,16.28,147.45,147.36,10.0669]
[1727884264805,16.28,147.44,147.36,6.02]
[1727884265010,23.6046,147.44,147.36,6.02]
[1727884265515,33.3846,147.44,147.36,6.02]
[1727884265709,33.3846,147.44,147.35,0.12502]
[1727884266005,26.06,147.41,147.35,0.12502]
[1727884266211,7.4059,147.4,147.35,0.12502]
[1727884266708,3.3928,147.36,147.35,0.12502]
[1727884267507,27.3394,147.39,147.29,0.12502]
[1727884268110,3.3942,147.3,147.29,0.12502]
[1727884269206,4.6736,147.31,147.29,0.12502]
[1727884269407,1.2794,147.31,147.29,0.12502]
[1727884269810,3.3942,147.3,147.29,0.12502]
[1727884271016,4.6734,147.31,147.29,0.12502]
[1727884271207,1.3841,147.33,147.29,0.12502]
[1727884271608,4.7777,147.33,147.29,0.12502]
[1727884271916,6.02,147.35,147.29,0.12502]
[1727884272121,9.4131,147.35,147.32,3.3937]
[1727884272317,1.3339,147.37,147.29,0.12502]
[1727884272516,1.3339,147.37,147.29,3.51932]
[1727884272706,1.3708,147.36,147.29,3.51932]
[1727884272906,1.3708,147.36,147.29,0.12502]
[1727884272907,32.08,147.35,147.29,0.12502]
[1727884273111,26.06,147.32,147.29,0.12502]
[1727884273314,29.46973777,147.32,147.29,0.12502]
[1727884273708,3.3942,147.3,147.29,0.12502]
[1727884274520,3.3949,147.28,147.25,3.3953]
[1727884275311,2.7235,147.3,147.24,3.3955]
[1727884275713,28.7835,147.3,147.23,0.12502]
[1727884276016,3.3953,147.26,147.23,3.52072]
[1727884277024,28.7835,147.3,147.23,0.12502]
[1727884277025,3.3956,147.24,147.23,0.12502]
[1727884277719,3.3964,147.21,147.17,3.2002444]
[1727884277923,26.06,147.23,147.17,3.2002444]
[1727884278227,3.3966,147.2,147.17,0.12502]
[1727884278427,26.06,147.21,147.17,0.12502]
[1727884279125,3.3969,147.19,147.17,0.12502]
[1727884279717,3.397,147.18,147.17,0.12502]
[1727884285028,1.3962,147.22,147.17,0.12502]
[1727884285425,33.6729,147.25,147.17,0.12502]
[1727884285426,30.8284,147.25,147.17,0.12502]
[1727884285633,27.4329,147.25,147.17,0.12502]
[1727884286019,30.8284,147.25,147.22,3.396]
[1727884286626,3.396,147.23,147.2,3.3964]
[1727884287826,27.4329,147.25,147.17,0.12502]
[1727884288027,3.3957,147.24,147.21,3.3962]
[1727884288422,3.3958,147.23,147.21,3.3962]
[1727884289827,30.8284,147.25,147.22,3.3959]
[1727884290232,30.7895931,147.27,147.18,6.24]
[1727884290434,3.3953,147.26,147.18,8.9038]
[1727884291337,3.3953,147.26,147.23,3.3957]
[1727884291939,27.4438,147.27,147.18,8.9038]
[1727884291940,3.395,147.27,147.18,8.9038]
[1727884292238,0.12502,147.29,147.18,15.6898]
[1727884292535,3.51952,147.29,147.26,3.395]
[1727884294434,0.12502,147.29,147.27,3.3948]
[1727884294745,0.12502,147.29,147.22,6.24]
[1727884294934,0.12502,147.29,147.23,1.2815]
[1727884295239,0.12502,147.29,147.28,3.3947]
[1727884295436,0.12502,147.35,147.26,6.24]
[1727884295741,3.3935,147.34,147.31,3.3939]
[1727884295929,3.3935,147.34,147.27,1.3983]
[1727884297041,3.3935,147.34,147.31,3.3938]
[1727884297243,3.3935,147.34,147.27,1.3983]
[1727884298239,3.3935,147.34,147.31,3.3938]
[1727884298550,3.3935,147.34,147.27,1.3983]
[1727884298837,0.12502,147.35,147.33,3.3934]
[1727884299040,0.12502,147.35,147.3,6.24]
[1727884299540,0.12502,147.35,147.34,3.3933]
[1727884305045,0.12502,147.35,147.33,3.3934]
[1727884305846,0.12502,147.35,147.34,3.3933]
[1727884306438,33.81432,147.41,147.32,6.24]
[1727884306439,0.12502,147.41,147.32,6.24]
[1727884307040,0.12502,147.41,147.39,3.3921]
[1727884307235,0.12502,147.41,147.32,6.24]
[1727884307236,0.12502,147.41,147.36,6.24]
[1727884308042,0.12502,147.41,147.4,3.3919]
[1727884308835,0.12502,147.41,147.37,1.319]
[1727884309146,0.12502,147.41,147.39,3.3921]
[1727884309342,0.12502,147.41,147.37,4.67607985]
[1727884309543,0.12502,147.41,147.4,3.3919]
[1727884309843,3.51532,147.47,147.4,6.24]
[1727884310039,3.51532,147.47,147.44,3.391]
[1727884311549,3.3909,147.45,147.42,3.3913]
[1727884311848,0.12502,147.47,147.4,6.24]
[1727884312346,3.3909,147.45,147.42,3.3914]
[1727884314850,3.3914,147.43,147.4,3.3918]
[1727884316347,3.3915,147.42,147.39,9.4921]
[1727884317052,3.3915,147.42,147.39,6.1]
[1727884318050,3.3915,147.42,147.39,9.492]
[1727884318251,3.3915,147.42,147.39,3.392]
[1727884318439,3.3917,147.41,147.38,3.3923]
[1727884318642,1.2697,147.46,147.37,7.419]
[1727884320052,3.3915,147.42,147.39,3.392]
[1727884320654,3.3915,147.42,147.37,7.419]
[1727884321148,1.2697,147.46,147.37,7.419]
[1727884321347,3.3911,147.44,147.37,7.419]
[1727884321656,1.2697,147.46,147.38,16.28]
[1727884321849,3.51542,147.47,147.44,3.391]
[1727884322055,3.51542,147.47,147.4,16.28]
[1727884322056,0.12502,147.47,147.41,6.1]
[1727884322653,0.12502,147.47,147.45,3.3906]
[1727884322858,0.12502,147.47,147.41,6.1]
[1727884323158,0.12502,147.47,147.46,3.3905]
[1727884323948,0.12502,147.47,147.45,6.1]
[1727884324264,0.12502,147.47,147.42,7.3699]
[1727884324958,3.51552,147.47,147.42,7.3699]
[1727884325849,3.51552,147.47,147.44,3.391]
[1727884326051,0.12502,147.47,147.42,6.1]
[1727884326551,0.12502,147.47,147.44,3.3908]
[1727884327150,3.51542,147.47,147.44,3.3908]
[1727884327962,0.12502,147.47,147.45,3.3907]
[1727884328258,0.12502,147.47,147.42,6.1]
[1727884328758,3.51552,147.47,147.44,3.3908]
[1727884330149,0.12502,147.47,147.42,6.1]
[1727884330560,0.12502,147.47,147.4,6.08]
[1727884332360,3.3906,147.46,147.43,3.3912]
[1727884332759,0.12502,147.47,147.43,3.3912]
[1727884332956,0.12502,147.47,147.41,3.3916]
[1727884333466,3.3912,147.44,147.41,3.3916]
[1727884333964,0.12502,147.47,147.39,6.08]
[1727884334164,0.12502,147.47,147.42,3.3914]
[1727884334165,3.3909,147.45,147.42,3.3914]
[1727884334963,3.3909,147.45,147.39,6.08]
[1727884335265,3.3906,147.46,147.43,3.3912]
[1727884335663,3.3906,147.46,147.41,3.3916]
[1727884335967,0.12502,147.47,147.39,6.08]
[1727884336761,0.12502,147.47,147.38,7.4445]
[1727884337268,6.08,147.46,147.38,7.4445]
[1727884337567,3.3912,147.43,147.41,3.3916]
[1727884337770,3.3912,147.43,147.38,7.4445]
[1727884337771,7.409,147.46,147.37,1.319]
[1727884337966,2.675,147.45,147.36,6.08]
[1727884338359,0.12502,147.47,147.4,26.02]
[1727884338559,0.12502,147.47,147.41,6.08]
[1727884338772,0.12502,147.47,147.46,3.3905]
[1727884341571,0.12502,147.47,147.42,1.3177]
[1727884342269,0.12502,147.47,147.46,3.3905]
[1727884344972,3.51532,147.47,147.44,3.3909]
[1727884345171,0.12502,147.47,147.42,1.3177]
[1727884345377,0.12502,147.47,147.43,6.02]
[1727884345579,0.12502,147.47,147.46,3.3905]
[1727884346861,3.51552,147.47,147.44,3.3908]
[1727884347068,3.51552,147.47,147.43,6.02]
[1727884347274,0.12502,147.47,147.42,1.3177]
[1727884347478,0.12502,147.47,147.42,7.3377]
[1727884347673,3.51542,147.47,147.44,3.3909]
[1727884349181,0.12502,147.47,147.46,3.3905]
[1727884349974,0.12502,147.47,147.42,7.3377]
[1727884350170,0.12502,147.47,147.42,6.02]
[1727884350370,3.3908,147.45,147.41,17.657]
[1727884350576,3.3908,147.45,147.41,16.27]
[1727884350978,3.3908,147.45,147.42,3.3913]
[1727884351375,0.12502,147.47,147.4,6.02]
[1727884351579,3.3911,147.44,147.41,3.3916]
[1727884351880,16.39502,147.47,147.39,6.02]
[1727884352285,1.2776,147.46,147.39,6.02]
[1727884352875,3.3911,147.44,147.41,3.3916]
[1727884353281,3.3912,147.43,147.41,3.3916]
[1727884354785,3.43860244,147.44,147.35,16.39502]
[1727884355083,16.27,147.43,147.35,0.12502]
[1727884355285,16.27,147.41,147.35,0.12502]
[1727884355782,16.27,147.38,147.35,0.12502]
[1727884356173,3.3928,147.36,147.35,0.12502]
[1727884356378,6.8069791,147.36,147.35,0.12502]
[1727884356578,3.3928,147.36,147.35,0.12502]
[1727884357283,1.3788,147.39,147.35,0.12502]
[1727884357494,6.02,147.41,147.35,0.12502]
[1727884357681,6.02,147.41,147.35,16.39502]
[1727884357877,9.4118,147.41,147.38,3.3922]
[1727884359278,6.02,147.41,147.39,3.3921]
[1727884359480,6.02,147.41,147.35,16.39502]
[1727884359681,8.6672,147.44,147.35,16.39502]
[1727884359887,3.3916,147.42,147.37,3.3924]
[1727884360087,8.6672,147.44,147.35,16.39502]
[1727884360780,3.392,147.4,147.35,16.39502]
[1727884361280,3.392,147.4,147.37,3.3925]
[1727884362084,16.27,147.43,147.35,0.12502]
[1727884362282,8.6672,147.44,147.35,0.12502]
[1727884362283,16.27,147.41,147.35,0.12502]
[1727884362887,16.27,147.41,147.35,3.51792]
[1727884363389,16.27,147.41,147.35,0.12502]
[1727884363891,6.02,147.4,147.35,0.12502]
[1727884364685,3.3925,147.38,147.35,0.12502]
[1727884364876,16.27,147.39,147.35,0.12502]
[1727884365083,3.3928,147.36,147.35,0.12502]
[1727884365390,17.5461,147.39,147.35,0.12502]
[1727884365981,3.3928,147.36,147.35,0.12502]
[1727884368382,19.6628,147.36,147.35,0.12502]
[1727884368581,3.3938,147.33,147.29,0.12502]
[1727884368986,22.29,147.36,147.3,3.3941]
[1727884370095,22.29,147.36,147.29,0.12502]
[1727884370292,16.27,147.34,147.29,3.51942]
[1727884370987,3.3936,147.33,147.29,3.51942]
[1727884371293,16.27,147.32,147.29,0.12502]
[1727884371683,3.3941,147.31,147.29,0.12502]
[1727884372083,16.27,147.32,147.29,0.12502]
[1727884372281,22.29,147.32,147.29,0.12502]
[1727884372487,16.27,147.3,147.29,0.12502]
[1727884373093,2.5993,147.31,147.29,0.12502]
[1727884373395,18.8693,147.31,147.29,0.12502]
[1727884376593,18.8693,147.31,147.23,0.12502]
[1727884379092,16.27,147.29,147.23,0.12502]
[1727884379807,19.67804003,147.29,147.23,0.12502]
[1727884380896,16.27,147.27,147.23,0.12502]
[1727884381104,6.02,147.28,147.23,0.12502]
[1727884381105,16.27,147.25,147.23,0.12502]
[1727884381294,6.02,147.24,147.23,0.12502]
[1727884381694,7.3035,147.24,147.23,0.12502]
[1727884382802,6.02,147.26,147.23,0.12502]
[1727884384203,6.02,147.29,147.23,0.12502]
[1727884384409,9.41005563,147.29,147.23,0.12502]
[1727884384698,16.27,147.27,147.23,0.12502]
[1727884390203,16.27,147.25,147.23,0.12502]
[1727884391707,16.27,147.27,147.23,0.12502]
[1727884391906,22.29,147.27,147.23,0.12502]
[1727884392206,16.27,147.25,147.23,0.12502]
[1727884392804,22.29,147.27,147.23,0.12502]
[1727884393012,6.02,147.27,147.23,0.12502]
[1727884393397,25.68005563,147.29,147.23,0.12502]
[1727884393599,22.29,147.29,147.23,0.12502]
[1727884393801,6.02,147.29,147.23,0.12502]
[1727884397003,1.3567,147.3,147.23,0.12502]
[1727884397713,19.7019185,147.29,147.23,0.12502]
[1727884399406,16.27,147.27,147.23,0.12502]
[1727884400309,16.27,147.25,147.23,0.12502]
[1727884402014,16.27,147.25,147.17,0.12502]
[1727884402315,3.5569385,147.29,147.17,0.12502]
[1727884402316,16.27,147.22,147.17,0.12502]
[1727884403427,16.27,147.2,147.17,0.12502]
[1727884403715,19.67592423,147.2,147.17,0.12502]
[1727884404909,16.27,147.18,147.11,0.12502]
[1727884405104,16.27,147.16,147.11,0.12502]
[1727884405508,17.5586,147.18,147.11,0.12502]
[1727884408014,16.27,147.16,147.11,0.12502]
[1727884410819,3.3981,147.14,147.11,3.52342]
[1727884411220,16.27,147.16,147.11,0.12502]
[1727884411520,1.2886,147.18,147.11,0.12502]
[1727884411715,25.69592423,147.2,147.11,25.8664136]
[1727884412023,9.4167,147.2,147.18,3.397]
[1727884412316,6.02,147.2,147.18,3.397]
[1727884412524,9.4167,147.2,147.17,3.3971]
[1727884412815,6.02,147.2,147.13,16.27]
[1727884413012,6.02,147.2,147.13,18.995]
[1727884413314,3.45962409,147.21,147.13,18.995]
[1727884414220,6.85612409,147.21,147.13,18.995]
[1727884414615,23.5775,147.22,147.13,18.995]
[1727884415011,23.5775,147.22,147.19,3.3966]
[1727884415218,3.3963,147.21,147.19,3.3966]
[1727884415417,20.1814,147.22,147.19,3.3966]
[1727884416323,23.5776,147.22,147.19,3.3966]
[1727884417319,20.1814,147.22,147.19,3.3966]
[1727884417527,3.3963,147.21,147.19,3.3966]
[1727884417723,20.1814,147.22,147.2,3.3965]
[1727884418019,1.3144,147.22,147.15,6.02]
[1727884418329,3.52092,147.23,147.15,6.02]
[1727884418519,0.12502,147.23,147.15,22.29]
[1727884419225,0.12502,147.23,147.22,3.3961]
[1727884423836,0.12502,147.23,147.18,6.02]
[1727884425332,0.12502,147.23,147.22,3.3961]
[1727884428228,0.12502,147.23,147.21,3.3962]
[1727884428731,0.12502,147.23,147.19,3.3966]
[1727884428937,16.27,147.22,147.13,1.3907]
[1727884429133,16.27,147.22,147.14,6.02]
[1727884429438,16.27,147.22,147.11,8.80752]
[1727884429439,16.27,147.18,147.11,8.80752]
[1727884429639,19.61149042,147.17,147.11,0.12502]
[1727884429833,17.5942,147.17,147.11,3.52342]
[1727884430035,20.2834,147.17,147.11,0.12502]
[1727884430237,16.27,147.15,147.11,0.12502]
[1727884430740,16.27,147.16,147.11,0.12502]
[1727884431034,16.27,147.16,147.13,3.398]
[1727884431440,2.655,147.17,147.11,0.12502]
[1727884432437,2.655,147.17,147.14,3.3978]
[1727884433237,2.655,147.17,147.16,3.3974]
[1727884433443,1.3242,147.17,147.16,3.3974]
[1727884433635,6.02,147.19,147.11,6.14502]
[1727884434546,16.27,147.2,147.12,16.27]
[1727884435136,1.3252,147.21,147.13,16.27]
[1727884435540,17.6185,147.22,147.13,16.27]
[1727884435541,16.27,147.22,147.2,3.3964]
[1727884435732,0.12502,147.23,147.2,3.3964]
[1727884436630,0.12502,147.23,147.15,22.29]
[1727884436839,0.12502,147.23,147.22,3.3961]
[1727884438245,0.12502,147.23,147.21,3.3962]
[1727884438744,0.12502,147.23,147.18,6.02]
[1727884439537,0.12502,147.23,147.21,3.3961]
[1727884439733,0.12502,147.23,147.18,6.02]
[1727884440339,0.12502,147.23,147.21,3.3962]
[1727884440952,0.12502,147.23,147.18,6.02]
[1727884441144,0.12502,147.23,147.22,3.3961]
[1727884443242,0.12502,147.23,147.22,9.4161]
[1727884443444,0.12502,147.29,147.22,9.4161]
[1727884443445,0.12502,147.29,147.28,3.3947]
[1727884447251,0.12502,147.29,147.23,16.27]
[1727884447449,3.52298264,147.29,147.22,6.02]
[1727884447647,0.12502,147.29,147.22,6.02]
[1727884447953,3.3949,147.27,147.24,3.3956]
[1727884448648,3.3949,147.27,147.23,3.3957]
[1727884448649,16.27,147.26,147.23,3.3957]
[1727884449151,19.6653,147.26,147.23,3.3957]
[1727884449347,19.6653,147.26,147.19,8.6798]
[1727884449348,16.27,147.26,147.19,8.6798]
[1727884449644,17.5427,147.26,147.19,8.6798]
[1727884450043,1.2727,147.26,147.19,8.6798]
[1727884450240,1.2727,147.26,147.19,24.9498]
[1727884450446,0.12502,147.29,147.19,28.38884923]
[1727884451050,3.59431031,147.29,147.22,3.3961]
[1727884451251,3.59431031,147.29,147.19,28.38884923]
[1727884451744,3.59431031,147.29,147.26,3.395]
[1727884452450,16.27,147.28,147.19,24.9498]
[1727884452752,16.27,147.28,147.19,28.28291319]
[1727884452951,16.27,147.28,147.19,24.9498]
[1727884453151,16.27,147.28,147.25,3.3952]
[1727884454045,0.12502,147.29,147.21,16.27]
[1727884454241,0.12502,147.29,147.23,16.27]
[1727884454445,0.12502,147.29,147.28,3.3947]
[1727884460952,1.46522,147.35,147.28,16.27]
[1727884461147,1.46522,147.35,147.34,3.3933]
[1727884462151,0.12502,147.35,147.34,3.3933]
[1727884462349,0.12502,147.35,147.28,17.6194]
[1727884462551,0.12502,147.35,147.33,3.3934]
[1727884463652,3.51812,147.35,147.33,3.3934]
[1727884464954,0.12502,147.35,147.27,16.27]
[1727884465155,0.12502,147.35,147.25,22.29]
[1727884465156,22.29,147.34,147.25,22.29]
[1727884465350,1.277,147.33,147.25,22.29]
[1727884465659,1.277,147.33,147.28,3.3945]
[1727884465660,3.3941,147.31,147.28,3.3945]
[1727884465959,3.3941,147.31,147.25,22.29]
[1727884466160,3.3941,147.31,147.29,3.3944]
[1727884466353,3.3938,147.32,147.29,3.3944]
[1727884466554,3.3938,147.32,147.3,3.3941]
[1727884466752,1.277,147.33,147.25,22.29]
[1727884467153,4.6706,147.33,147.27,3.3948]
[1727884467354,1.277,147.33,147.25,22.29]
[1727884468051,1.277,147.33,147.31,3.3939]
[1727884468957,1.277,147.33,147.25,22.29]
[1727884469254,3.3942,147.31,147.25,22.29]
[1727884469462,3.3942,147.31,147.28,3.3945]
[1727884469652,3.3942,147.31,147.25,22.29]
[1727884470161,3.3942,147.31,147.28,3.3945]
[1727884470545,1.277,147.33,147.25,22.29]
[1727884470749,3.3939,147.32,147.29,3.3943]
[1727884471760,1.277,147.33,147.28,3.3945]
[1727884472552,1.277,147.33,147.25,6.02]
[1727884472857,1.277,147.33,147.27,3.3948]
[1727884472858,3.3944,147.3,147.27,3.3948]
[1727884473052,16.27,147.32,147.27,3.3948]
[1727884473249,3.3946,147.29,147.27,3.3948]
[1727884473454,3.3946,147.29,147.26,3.395]
[1727884473654,3.36943972,147.29,147.23,0.12502]
[1727884473850,22.27,147.3,147.24,3.3954]
[1727884473851,3.395,147.27,147.24,3.3954]
[1727884474558,16.27,147.28,147.23,3.52082]
[1727884474753,18.9667,147.28,147.23,3.52082]
[1727884474954,1.398,147.27,147.23,0.12502]
[1727884475150,3.3955,147.25,147.23,0.12502]
[1727884475558,1.398,147.27,147.23,0.12502]
[1727884475759,3.3952,147.26,147.23,0.12502]
[1727884476257,3.3952,147.26,147.23,3.52072]
[1727884476460,3.3952,147.26,147.23,0.12502]
[1727884476757,3.3952,147.26,147.24,3.3955]
[1727884476960,3.3952,147.26,147.23,0.12502]
[1727884477557,3.3952,147.26,147.23,3.52062]
[1727884477757,1.398,147.27,147.23,0.12502]
[1727884478349,1.398,147.27,147.23,3.52072]
[1727884478549,1.398,147.27,147.23,0.12502]
[1727884478750,8.7167,147.28,147.26,3.3951]
[1727884479357,2.6967,147.28,147.26,3.3951]
[1727884479556,17.5532,147.32,147.23,0.12502]
[1727884479758,3.3944,147.3,147.23,0.12502]
[1727884480166,9.4141,147.31,147.28,3.3946]
[1727884480662,9.4141,147.31,147.23,0.12502]
[1727884480859,9.4141,147.31,147.23,1.45632]
[1727884482360,6.02,147.31,147.25,3.3953]
[1727884482563,6.02,147.31,147.23,1.45632]
[1727884482954,3.3947,147.28,147.25,3.3953]
[1727884483466,3.395,147.27,147.24,3.3955]
[1727884483667,3.395,147.27,147.24,2.9914596]
[1727884483962,3.395,147.27,147.23,0.12502]
[1727884484166,3.395,147.27,147.25,3.3953]
[1727884484367,3.42478482,147.29,147.25,3.3953]
[1727884484567,3.3948,147.28,147.25,3.3953]
[1727884484763,3.3948,147.28,147.25,2.37489184]
[1727884485166,16.27,147.3,147.28,3.3945]
[1727884485767,16.27,147.3,147.27,3.3948]
[1727884486159,16.27,147.3,147.23,0.12502]
[1727884486357,3.3949,147.28,147.26,3.395]
[1727884486566,16.27,147.3,147.26,3.395]
[1727884486964,3.3946,147.29,147.26,3.395]
[1727884487164,3.3946,147.29,147.26,2.37459184]
[1727884487357,3.38314327,147.29,147.25,3.3952]
[1727884487762,3.3948,147.28,147.25,3.3952]
[1727884488165,3.38314327,147.29,147.25,3.3952]
[1727884488369,3.395,147.27,147.23,0.12502]
[1727884488765,3.38314327,147.29,147.23,0.12502]
[1727884488970,3.3952,147.26,147.24,3.3955]
[1727884489170,3.36956044,147.27,147.23,0.12502]
[1727884489466,9.38956044,147.27,147.23,0.12502]
[1727884489665,9.38956044,147.27,147.23,3.52072]
[1727884489863,9.38956044,147.27,147.23,0.12502]
[1727884490068,3.3956,147.24,147.23,0.12502]
[1727884490769,19.6656,147.24,147.23,0.12502]
[1727884491164,16.27,147.24,147.17,0.12502]
[1727884491364,16.27,147.24,147.19,3.3966]
[1727884491365,3.3962,147.22,147.19,3.3966]
[1727884491568,16.27,147.24,147.19,3.3966]
[1727884491777,3.3963,147.22,147.19,3.3966]
[1727884492072,16.27,147.24,147.17,0.12502]
[1727884492371,6.02,147.23,147.2,3.3965]
[1727884493274,3.3961,147.22,147.2,3.3965]
[1727884495472,16.27,147.22,147.17,0.12502]
[1727884495677,16.27,147.2,147.17,0.12502]
[1727884496777,19.6665,147.2,147.17,3.52212]
[1727884497769,16.27,147.2,147.17,0.12502]
[1727884498074,9.48045382,147.19,147.17,0.12502]
[1727884498572,3.397,147.18,147.17,0.12502]
[1727884500877,3.3984,147.12,147.11,0.12502]
[1727884501093,9.3984,147.12,147.11,0.12502]
[1727884501292,9.3984,147.12,147.11,1e-08]
[1727884501293,6.0,147.12,147.11,1e-08]
[1727884502393,16.27,147.13,147.11,1e-08]
[1727884502794,1.38641999,147.17,147.11,1e-08]
[1727884502990,1.38641999,147.17,147.11,3.39850001]
[1727884502991,16.27,147.15,147.11,3.39850001]
[1727884503189,16.27,147.15,147.11,1e-08]
[1727884503386,22.29,147.14,147.11,1e-08]
[1727884504092,3.3981,147.13,147.11,1e-08]
[1727884504695,6.02,147.12,147.11,3.39860001]
[1727884505695,6.02,147.13,147.12,3.3983]
[1727884505890,6.02,147.14,147.11,1e-08]
[1727884506792,0.12501999,147.17,147.11,1e-08]
[1727884507395,0.12501999,147.17,147.15,3.3977]
[1727884507787,0.12501999,147.17,147.16,3.3974]
[1727884509398,6.14502,147.23,147.22,3.3961]
[1727884509600,0.12502,147.23,147.22,3.3961]
[1727884510097,0.12502,147.23,147.17,1.3632]
[1727884511401,0.12502,147.23,147.18,3.3968]
[1727884511599,3.52092,147.23,147.17,1.3632]
[1727884511998,0.12502,147.23,147.17,1.3632]
[1727884512598,0.12502,147.23,147.19,3.3966]
[1727884512798,3.3962,147.22,147.19,3.3966]
[1727884513196,16.39502,147.23,147.13,17.6048]
[1727884513391,16.27,147.21,147.12,2.6319]
[1727884513592,16.27,147.19,147.12,2.6319]
[1727884514001,19.64771925,147.19,147.12,2.6319]
[1727884514900,16.27,147.19,147.12,2.6319]
[1727884515104,16.27,147.19,147.17,3.3972]
[1727884515402,16.27,147.19,147.12,2.6319]
[1727884515602,19.6669,147.19,147.14,3.3979]
[1727884515802,16.27,147.19,147.12,2.6319]
[1727884516103,19.6664,147.21,147.17,3.397]
[1727884516306,16.27,147.19,147.12,2.6319]
[1727884516502,19.59517838,147.19,147.12,2.6319]
[1727884517304,3.3972,147.17,147.14,3.3978]
[1727884518004,19.6672,147.17,147.13,3.398]
[1727884518305,16.27,147.17,147.11,0.12502]
[1727884518496,16.27,147.17,147.15,3.3976]
[1727884518894,16.27,147.19,147.11,0.12502]
[1727884519098,16.27,147.21,147.12,16.27]
[1727884519310,16.27,147.21,147.13,6.02]
[1727884519498,3.3966,147.2,147.17,3.3971]
[1727884520107,3.3966,147.2,147.18,3.397]
[1727884520810,3.3966,147.2,147.17,3.3971]
[1727884521005,19.6664,147.21,147.13,6.02]
[1727884521511,19.6664,147.21,147.18,3.3968]
[1727884521713,16.27,147.21,147.13,6.02]
[1727884521909,16.27,147.21,147.11,10.33028029]
[1727884521910,16.27,147.19,147.11,6.14502]
[1727884522105,16.27,147.19,147.15,3.3975]
[1727884522299,3.3971,147.18,147.15,3.3975]
[1727884522905,3.397,147.18,147.15,3.3975]